[Event "POL-chT 2 Liga 2019"]
[Site "Poronin"]
[Date "2019.09.12"]
[Round "6.52"]
[White "Adamczewski, Maciej"]
[Black "Sroka, Janusz"]
[Result "1-0"]
[ECO "A53"]
[WhiteElo "2109"]
[BlackElo "1876"]
[Annotator "NA"]
[PlyCount "95"]
[EventDate "2019.09.07"]
[EventType "team-tourn"]
[EventCountry "POL"]
[SourceTitle "playchess.com"]
[Source "ChessBase"]
[SourceQuality "1"]
[TimeControl "40/5400+30:1800+30"]

1. d4 {[%emt 0:05:21]} Nf6 {[%emt 0:00:00]} 2. c4 {[%emt 0:00:17]} d6 {[%emt 0:00:00]} 3. Nf3 {[%emt 0:00:34]} Nbd7 {[%emt 0:00:00]} 4. g3 {[%emt 0:00:47]} e5 {[%emt 0:00:53]} 5. Bg2 {[%emt 0:00:39]} Be7 {[%emt 0:00:08]} 6. O-O {[%emt 0:01:11]} O-O {[%emt 0:00:11]} 7. Nc3 {[%emt 0:05:43]} Re8 {[%emt 0:01:42]} 8. h3 {[%emt 0:01:47]} h6 {[%emt 0:00:57]} 9. Be3 {[%emt 0:00:50]} Bf8 {[%emt 0:00:21]} 10. Qc2 {[%emt 0:03:35]} c6 {[%emt 0:01:50]} 11. Rfd1 {[%emt 0:04:14]} Qe7 {[%emt 0:06:33]} 12. b3 {[%emt 0:05:53]} a6 {[%emt 0:06:22]} 13. Rac1 {[%emt 0:01:45]} g6 {[%emt 0:03:20]} 14. Nd2 {[%emt 0:09:00]} Kh7 {[%emt 0:08:52]} 15. dxe5 {[%emt 0:02:27]} dxe5 {[%emt 0:00:07]} 16. Na4 {[%emt 0:00:22]} Qe6 {[%emt 0:01:17]} 17. Kh2 {[%emt 0:04:13]} Ba3 {[%emt 0:06:12]} 18. Ra1 {[%emt 0:02:55]} Bf8 {[%emt 0:02:14]} 19. a3 {[%emt 0:01:04]} Bg7 {[%emt 0:03:42]} 20. Rab1 {[%emt 0:01:41]} Nh5 {[%emt 0:03:03]} 21. Ne4 {[%emt 0:04:01]} f5 {[%emt 0:11:25]} 22. Nec5 {[%emt 0:04:10]} Qf7 {[%emt 0:02:23]} 23. Rxd7 {[%emt 0:09:01]} Bxd7 {[%emt 0:03:11]} 24. Nxb7 {[%emt 0:03:45]} f4 {[%emt 0:03:56]} 25. Nd6 {[%emt 0:02:08]} Qe6 {[%emt 0:12:01]} 26. Nxe8 {[%emt 0:02:14]} Qxe8 {[%emt 0:04:15]} 27. Bc5 {[%emt 0:01:05]} fxg3+ {[%emt 0:04:55]} 28. fxg3 {[%emt 0:00:08]} e4 {[%emt 0:01:15]} 29. Qxe4 {[%emt 0:05:48]} Be5 {[%emt 0:00:14]} 30. Bf2 {[%emt 0:00:27]} Qe7 {[%emt 0:07:51]} 31. Rd1 {[%emt 0:03:30]} Bf5 {[%emt 0:04:02]} 32. Qxc6 {[%emt 0:00:31]} Rc8 {[%emt 0:00:37]} 33. Qf3 {[%emt 0:00:38]} Qh4 {[%emt 0:02:06]} 34. Rd5 {[%emt 0:01:38]} Qe7 {[%emt 0:00:32]} 35. e4 {[%emt 0:01:15]} Bd7 {[%emt 0:00:14]} 36. Nb6 {[%emt 0:00:16]} Rc7 {[%emt 0:00:46]} 37. Nxd7 {[%emt 0:00:39]} Rxd7 {[%emt 0:00:01]} 38. Bf1 {[%emt 0:02:40]} Rxd5 {[%emt 0:00:57]} 39. exd5 {[%emt 0:00:11]} Qxa3 {[%emt 0:00:27]} 40. Bd3 {[%emt 0:00:00]} Kg7 {[%emt 0:00:00]} 41. Qg4 {[%emt 0:07:57]} Qd6 {[%emt 0:01:31]} 42. Be4 {[%emt 0:01:07]} Qf6 {[%emt 0:02:05]} 43. Kg2 {[%emt 0:00:28]} Qf7 {[%emt 0:00:23]} 44. Bf3 {[%emt 0:00:41]} Nf6 {[%emt 0:01:13]} 45. Qc8 {[%emt 0:00:11]} a5 {[%emt 0:00:44]} 46. Qc5 {[%emt 0:00:45]} Bc3 {[%emt 0:01:28]} 47. Bd4 {[%emt 0:00:12]} Bxd4 {[%emt 0:00:25]} 48. Qxd4 {[%emt 0:00:05]} 1-0

[Event "POL-chT 2 Liga 2019"]
[Site "Poronin"]
[Date "2019.09.12"]
[Round "6.53"]
[White "Jablonski, Hubert"]
[Black "Hasterok, Mateusz"]
[Result "0-1"]
[ECO "B24"]
[WhiteElo "1576"]
[BlackElo "1985"]
[Annotator "NA"]
[PlyCount "54"]
[EventDate "2019.09.07"]
[EventType "team-tourn"]
[EventCountry "POL"]
[SourceTitle "playchess.com"]
[Source "ChessBase"]
[SourceQuality "1"]
[TimeControl "40/5400+30:1800+30"]

1. e4 {[%emt 0:00:00]} c5 {[%emt 0:00:42]} 2. Nc3 {[%emt 0:00:02]} Nc6 {[%emt 0:00:07]} 3. Bc4 {[%emt 0:00:46]} e6 {[%emt 0:00:38]} 4. f4 {[%emt 0:01:39]} Nge7 {[%emt 0:00:39]} 5. d3 {[%emt 0:01:23]} g6 {[%emt 0:01:53]} 6. Nf3 {[%emt 0:01:55]} Bg7 {[%emt 0:00:13]} 7. O-O {[%emt 0:02:26]} O-O {[%emt 0:00:43]} 8. Qe1 {[%emt 0:08:28]} d5 {[%emt 0:02:20]} 9. Bb3 {[%emt 0:02:45]} a6 {[%emt 0:04:05]} 10. a4 {[%emt 0:07:08]} Nd4 {[%emt 0:05:32]} 11. Nxd4 {[%emt 0:15:52]} cxd4 {[%emt 0:00:06]} 12. Ne2 {[%emt 0:00:13]} dxe4 {[%emt 0:00:05]} 13. dxe4 {[%emt 0:00:09]} d3 {[%emt 0:00:54]} 14. Ng3 {[%emt 0:02:24]} h5 {[%emt 0:09:47]} 15. e5 {[%emt 0:15:30]} h4 {[%emt 0:05:05]} 16. Ne4 {[%emt 0:05:13]} Nf5 {[%emt 0:00:05]} 17. Be3 {[%emt 0:15:41]} dxc2 {[%emt 0:03:06]} 18. Bxc2 {[%emt 0:03:12]} Bd7 {[%emt 0:02:44]} 19. Rd1 {[%emt 0:08:21]} Qc7 {[%emt 0:00:29]} 20. Bb3 {[%emt 0:01:57]} Bc6 {[%emt 0:00:55]} 21. Nd6 {[%emt 0:03:09]} Nxd6 {[%emt 0:03:48]} 22. Rxd6 {[%emt 0:00:47]} Rfd8 {[%emt 0:00:40]} 23. Rxd8+ {[%emt 0:01:40]} Qxd8 {[%emt 0:01:24]} 24. Qd2 {[%emt 0:00:46]} Qxd2 {[%emt 0:00:23]} 25. Bxd2 {[%emt 0:00:08]} Rd8 {[%emt 0:00:28]} 26. Rd1 {[%emt 0:00:48]} h3 {[%emt 0:02:14]} 27. g3 {[%emt 0:00:30]} Bf3 {[%emt 0:00:10]} 0-1

[Event "POL-chT 2 Liga 2019"]
[Site "Poronin"]
[Date "2019.09.12"]
[Round "6.54"]
[White "Poznanska, Katarzyna"]
[Black "Jakubiec, Edyta"]
[Result "1/2-1/2"]
[ECO "B53"]
[WhiteElo "2082"]
[BlackElo "2221"]
[Annotator "NA"]
[PlyCount "72"]
[EventDate "2019.09.07"]
[EventType "team-tourn"]
[EventCountry "POL"]
[SourceTitle "playchess.com"]
[Source "ChessBase"]
[SourceQuality "1"]
[TimeControl "40/5400+30:1800+30"]

1. e4 {[%emt 0:01:43]} c5 {[%emt 0:00:00]} 2. Nf3 {[%emt 0:00:11]} d6 {[%emt 0:00:00]} 3. d4 {[%emt 0:00:20]} cxd4 {[%emt 0:00:05]} 4. Qxd4 {[%emt 0:00:11]} Nc6 {[%emt 0:00:18]} 5. Bb5 {[%emt 0:00:12]} Bd7 {[%emt 0:00:09]} 6. Bxc6 {[%emt 0:00:07]} Bxc6 {[%emt 0:00:07]} 7. Nc3 {[%emt 0:00:04]} e5 {[%emt 0:00:52]} 8. Qd3 {[%emt 0:01:14]} h6 {[%emt 0:00:23]} 9. O-O {[%emt 0:04:48]} Nf6 {[%emt 0:00:50]} 10. Rd1 {[%emt 0:06:45]} a6 {[%emt 0:01:26]} 11. a4 {[%emt 0:00:35]} Be7 {[%emt 0:02:23]} 12. a5 {[%emt 0:19:39]} O-O {[%emt 0:20:29]} 13. Be3 {[%emt 0:00:32]} Qd7 {[%emt 0:06:25]} 14. Nd2 {[%emt 0:09:39]} Qe6 {[%emt 0:13:39]} 15. Nf1 {[%emt 0:11:23]} Rad8 {[%emt 0:09:58]} 16. Bb6 {[%emt 0:04:09]} Rd7 {[%emt 0:01:31]} 17. Ne3 {[%emt 0:00:52]} Nh5 {[%emt 0:02:16]} 18. Ncd5 {[%emt 0:04:59]} Nf4 {[%emt 0:10:26]} 19. Nxf4 {[%emt 0:00:46]} exf4 {[%emt 0:00:05]} 20. Nd5 {[%emt 0:00:16]} Bg5 {[%emt 0:03:08]} 21. c4 {[%emt 0:02:01]} f5 {[%emt 0:00:20]} 22. Re1 {[%emt 0:02:04]} fxe4 {[%emt 0:02:39]} 23. Rxe4 {[%emt 0:00:46]} Qg6 {[%emt 0:00:08]} 24. f3 {[%emt 0:00:26]} Rdf7 {[%emt 0:04:58]} 25. Rae1 {[%emt 0:01:44]} Bd7 {[%emt 0:01:13]} 26. Qe2 {[%emt 0:03:59]} Qh5 {[%emt 0:01:21]} 27. Bd4 {[%emt 0:01:51]} Bd8 {[%emt 0:02:19]} 28. b4 {[%emt 0:01:57]} Bh4 {[%emt 0:03:48]} 29. Bf2 {[%emt 0:01:09]} Bd8 {[%emt 0:01:07]} 30. Qd2 {[%emt 0:02:08]} g5 {[%emt 0:00:50]} 31. Ne7+ {[%emt 0:02:12]} Bxe7 {[%emt 0:03:16]} 32. Rxe7 {[%emt 0:00:01]} Qg6 {[%emt 0:01:00]} 33. Rxf7 {[%emt 0:05:31]} Rxf7 {[%emt 0:00:06]} 34. Qd5 {[%emt 0:00:35]} Bc6 {[%emt 0:02:48]} 35. Qe6 {[%emt 0:00:31]} Kh7 {[%emt 0:00:11]} 36. Qxg6+ {[%emt 0:05:38]} Kxg6 {[%emt 0:00:06]} 1/2-1/2

[Event "POL-chT 2 Liga 2019"]
[Site "Poronin"]
[Date "2019.09.13"]
[Round "7.1"]
[White "Goluch, Piotr"]
[Black "Lewicki, Miroslaw"]
[Result "1-0"]
[ECO "E06"]
[WhiteElo "2428"]
[BlackElo "2351"]
[Annotator "NA"]
[PlyCount "117"]
[EventDate "2019.09.07"]
[EventType "team-tourn"]
[EventCountry "POL"]
[SourceTitle "playchess.com"]
[Source "ChessBase"]
[SourceQuality "1"]
[TimeControl "40/5400+30:1800+30"]

1. d4 {[%emt 0:00:00]} Nf6 {[%emt 0:00:00]} 2. c4 {[%emt 0:00:00]} e6 {[%emt 0:00:00]} 3. g3 {[%emt 0:00:00]} d5 {[%emt 0:00:21]} 4. Nf3 {[%emt 0:00:03]} Be7 {[%emt 0:00:23]} 5. Bg2 {[%emt 0:00:07]} O-O {[%emt 0:00:06]} 6. O-O {[%emt 0:00:03]} b6 {[%emt 0:01:11]} 7. cxd5 {[%emt 0:00:41]} exd5 {[%emt 0:00:12]} 8. Nc3 {[%emt 0:00:03]} Bb7 {[%emt 0:00:10]} 9. Bf4 {[%emt 0:00:05]} Na6 {[%emt 0:03:36]} 10. Qc2 {[%emt 0:01:16]} c5 {[%emt 0:04:05]} 11. Rfd1 {[%emt 0:00:51]} h6 {[%emt 0:00:58]} 12. Rac1 {[%emt 0:12:13]} Re8 {[%emt 0:06:25]} 13. dxc5 {[%emt 0:26:51]} bxc5 {[%emt 0:04:36]} 14. Ne5 {[%emt 0:03:46]} Qb6 {[%emt 0:10:46]} 15. Qf5 {[%emt 0:10:07]} Rad8 {[%emt 0:11:44]} 16. Nxd5 {[%emt 0:02:34]} Bxd5 {[%emt 0:00:14]} 17. Bxd5 {[%emt 0:00:48]} Rxd5 {[%emt 0:00:06]} 18. Rxd5 {[%emt 0:00:04]} g6 {[%emt 0:00:06]} 19. Nd7 {[%emt 0:19:53]} gxf5 {[%emt 0:00:13]} 20. Nxb6 {[%emt 0:00:03]} axb6 {[%emt 0:00:30]} 21. Rxf5 {[%emt 0:00:02]} Kg7 {[%emt 0:01:24]} 22. a3 {[%emt 0:02:44]} Kg6 {[%emt 0:04:26]} 23. e4 {[%emt 0:00:06]} Nxe4 {[%emt 0:03:03]} 24. Re5 {[%emt 0:00:02]} Ng5 {[%emt 0:00:09]} 25. Bxg5 {[%emt 0:01:28]} hxg5 {[%emt 0:00:06]} 26. Rce1 {[%emt 0:03:47]} Kf6 {[%emt 0:00:09]} 27. f4 {[%emt 0:00:01]} g4 {[%emt 0:04:40]} 28. h3 {[%emt 0:02:22]} c4 {[%emt 0:01:44]} 29. Kh2 {[%emt 0:00:22]} Nb8 {[%emt 0:03:49]} 30. hxg4 {[%emt 0:00:33]} Nc6 {[%emt 0:00:14]} 31. Rh5 {[%emt 0:02:01]} Kg7 {[%emt 0:04:46]} 32. Re4 {[%emt 0:04:57]} c3 {[%emt 0:01:57]} 33. bxc3 {[%emt 0:00:06]} Rd8 {[%emt 0:00:17]} 34. a4 {[%emt 0:01:37]} Rd2+ {[%emt 0:02:24]} 35. Kh3 {[%emt 0:00:11]} Bc5 {[%emt 0:00:47]} 36. g5 {[%emt 0:01:03]} Ne7 {[%emt 0:03:38]} 37. Kg4 {[%emt 0:01:27]} Nd5 {[%emt 0:00:11]} 38. Re8 {[%emt 0:03:50]} Rd3 {[%emt 0:08:00]} 39. Rhh8 {[%emt 0:01:27]} f5+ {[%emt 0:01:40]} 40. Kxf5 {[%emt 0:00:00]} Ne7+ {[%emt 0:00:00]} 41. Kg4 {[%emt 0:02:54]} Rxc3 {[%emt 0:01:41]} 42. Rd8 {[%emt 0:10:02]} Rc4 {[%emt 0:05:01]} 43. Kh5 {[%emt 0:01:51]} Rc1 {[%emt 0:05:23]} 44. Rhe8 {[%emt 0:00:12]} Rh1+ {[%emt 0:01:37]} 45. Kg4 {[%emt 0:00:04]} Ra1 {[%emt 0:00:08]} 46. Ra8 {[%emt 0:02:06]} Rf1 {[%emt 0:01:53]} 47. Red8 {[%emt 0:03:54]} Kg6 {[%emt 0:00:54]} 48. Rd7 {[%emt 0:00:34]} Rf2 {[%emt 0:00:48]} 49. a5 {[%emt 0:02:10]} bxa5 {[%emt 0:01:35]} 50. Rxa5 {[%emt 0:00:05]} Bb4 {[%emt 0:00:32]} 51. Rb5 {[%emt 0:00:12]} Ba3 {[%emt 0:00:16]} 52. Ra7 {[%emt 0:00:38]} Bd6 {[%emt 0:00:11]} 53. Rd7 {[%emt 0:02:21]} Ba3 {[%emt 0:01:03]} 54. Ra5 {[%emt 0:03:20]} Bb4 {[%emt 0:00:08]} 55. Ra4 {[%emt 0:00:57]} Bc5 {[%emt 0:00:07]} 56. Re4 {[%emt 0:01:21]} Kf7 {[%emt 0:00:49]} 57. f5 {[%emt 0:00:23]} Kf8 {[%emt 0:00:23]} 58. f6 {[%emt 0:01:21]} Nf5 {[%emt 0:00:16]} 59. Ra4 {[%emt 0:01:17]} 1-0

[Event "POL-chT 2 Liga 2019"]
[Site "Poronin"]
[Date "2019.09.13"]
[Round "7.2"]
[White "Kozak, Antoni"]
[Black "Lukasiewicz, Krzysztof"]
[Result "1-0"]
[ECO "A06"]
[WhiteElo "2341"]
[BlackElo "2254"]
[Annotator "NA"]
[PlyCount "99"]
[EventDate "2019.09.07"]
[EventType "team-tourn"]
[EventCountry "POL"]
[SourceTitle "playchess.com"]
[Source "ChessBase"]
[SourceQuality "1"]
[TimeControl "40/5400+30:1800+30"]

1. Nf3 {[%emt 0:00:00]} d5 {[%emt 0:00:00]} 2. e3 {[%emt 0:03:00]} Nf6 {[%emt 0:00:58]} 3. c4 {[%emt 0:00:12]} e6 {[%emt 0:00:04]} 4. b3 {[%emt 0:00:04]} Bd6 {[%emt 0:09:38]} 5. Bb2 {[%emt 0:00:07]} Nbd7 {[%emt 0:00:06]} 6. Nc3 {[%emt 0:08:35]} b6 {[%emt 0:07:25]} 7. Qc2 {[%emt 0:04:34]} a6 {[%emt 0:02:50]} 8. cxd5 {[%emt 0:03:29]} exd5 {[%emt 0:00:09]} 9. Nxd5 {[%emt 0:00:20]} Nxd5 {[%emt 0:01:10]} 10. Qe4+ {[%emt 0:01:44]} Qe7 {[%emt 0:04:40]} 11. Qxd5 Rb8 {[%emt 0:00:02]} 12. Bxg7 {[%emt 0:04:13]} Rg8 {[%emt 0:00:06]} 13. Bc3 {[%emt 0:01:08]} Nf6 {[%emt 0:04:20]} 14. Bxf6 {[%emt 0:03:45]} Qxf6 {[%emt 0:00:04]} 15. Qd4 {[%emt 0:00:03]} Qh6 {[%emt 0:02:13]} 16. Bxa6 {[%emt 0:02:15]} Bxa6 {[%emt 0:02:13]} 17. Qa4+ {[%emt 0:00:05]} Kf8 {[%emt 0:00:31]} 18. Qxa6 {[%emt 0:00:03]} Rxg2 {[%emt 0:00:07]} 19. Ke2 {[%emt 0:00:20]} Bxh2 {[%emt 0:05:23]} 20. Qa7 {[%emt 0:10:01]} Re8 {[%emt 0:04:06]} 21. Qxc7 {[%emt 0:00:17]} Qf6 {[%emt 0:02:32]} 22. Qc3 {[%emt 0:02:26]} Be5 {[%emt 0:01:17]} 23. Qb4+ {[%emt 0:00:04]} Bd6 {[%emt 0:12:32]} 24. Qh4 {[%emt 0:00:52]} Qf5 {[%emt 0:01:58]} 25. Qh6+ {[%emt 0:09:58]} Ke7 {[%emt 0:00:07]} 26. Rh5 {[%emt 0:03:25]} Qc8 {[%emt 0:04:32]} 27. Qxh7 {[%emt 0:12:05]} Qa6+ {[%emt 0:03:01]} 28. d3 {[%emt 0:00:11]} Qa3 {[%emt 0:14:25]} 29. Nd2 {[%emt 0:03:14]} Qb2 {[%emt 0:05:48]} 30. Qe4+ {[%emt 0:00:06]} Kf8 {[%emt 0:01:02]} 31. Qxg2 {[%emt 0:00:41]} Qxa1 {[%emt 0:00:03]} 32. Qh1 {[%emt 0:00:45]} Qxh1 {[%emt 0:02:18]} 33. Rxh1 {[%emt 0:00:04]} Ke7 {[%emt 0:00:06]} 34. a4 {[%emt 0:00:14]} Rb8 {[%emt 0:00:19]} 35. Rh5 {[%emt 0:00:07]} Ke6 {[%emt 0:00:10]} 36. Rb5 {[%emt 0:00:09]} Bc7 {[%emt 0:00:05]} 37. Nc4 {[%emt 0:00:11]} Kd7 {[%emt 0:00:03]} 38. d4 {[%emt 0:00:06]} Kc6 {[%emt 0:00:19]} 39. d5+ {[%emt 0:00:04]} Kd7 {[%emt 0:00:03]} 40. a5 {[%emt 0:00:00]} bxa5 {[%emt 0:00:00]} 41. Rxb8 {[%emt 0:00:31]} Bxb8 {[%emt 0:00:49]} 42. Nxa5 {[%emt 0:00:04]} Kd6 {[%emt 0:00:05]} 43. e4 {[%emt 0:00:10]} f5 {[%emt 0:00:02]} 44. f3 {[%emt 0:00:10]} fxe4 {[%emt 0:00:03]} 45. fxe4 {[%emt 0:00:02]} Bc7 {[%emt 0:00:05]} 46. Nc6 {[%emt 0:00:04]} Kc5 {[%emt 0:00:03]} 47. Kd3 {[%emt 0:00:07]} Bd6 {[%emt 0:00:46]} 48. b4+ {[%emt 0:00:18]} Kb5 {[%emt 0:00:03]} 49. e5 {[%emt 0:00:06]} Bc7 {[%emt 0:00:11]} 50. Ke4 {[%emt 0:00:11]} 1-0

[Event "POL-chT 2 Liga 2019"]
[Site "Poronin"]
[Date "2019.09.13"]
[Round "7.3"]
[White "Jankowiak, Tomasz"]
[Black "Mis, Mieszko"]
[Result "0-1"]
[ECO "B12"]
[WhiteElo "2075"]
[BlackElo "2320"]
[Annotator "NA"]
[PlyCount "52"]
[EventDate "2019.09.07"]
[EventType "team-tourn"]
[EventCountry "POL"]
[SourceTitle "playchess.com"]
[Source "ChessBase"]
[SourceQuality "1"]
[TimeControl "40/5400+30:1800+30"]

1. e4 {[%emt 0:00:00]} c6 {[%emt 0:00:00]} 2. d4 {[%emt 0:00:00]} d5 {[%emt 0:00:00]} 3. e5 {[%emt 0:00:00]} Bf5 {[%emt 0:00:41]} 4. h4 {[%emt 0:00:04]} h6 {[%emt 0:01:10]} 5. g4 {[%emt 0:00:10]} Be4 {[%emt 0:00:04]} 6. f3 {[%emt 0:00:05]} Bh7 {[%emt 0:00:01]} 7. e6 {[%emt 0:00:50]} Qd6 {[%emt 0:00:07]} 8. exf7+ {[%emt 0:00:36]} Kxf7 {[%emt 0:00:02]} 9. Bd3 {[%emt 0:19:44]} Bxd3 {[%emt 0:00:08]} 10. Qxd3 {[%emt 0:00:06]} Nd7 {[%emt 0:00:14]} 11. Ne2 {[%emt 0:12:22]} e5 {[%emt 0:16:18]} 12. Nbc3 {[%emt 0:11:43]} Ngf6 {[%emt 0:03:39]} 13. h5 {[%emt 0:02:54]} exd4 {[%emt 0:07:18]} 14. Nxd4 {[%emt 0:11:07]} Re8+ {[%emt 0:21:30]} 15. Nce2 {[%emt 0:03:14]} Ne5 {[%emt 0:02:28]} 16. Qf5 {[%emt 0:09:08]} c5 {[%emt 0:02:39]} 17. Nb5 {[%emt 0:05:27]} Qc6 {[%emt 0:00:29]} 18. a4 {[%emt 0:02:05]} a6 {[%emt 0:01:29]} 19. Nbc3 {[%emt 0:01:04]} d4 {[%emt 0:00:36]} 20. O-O {[%emt 0:18:42]} dxc3 {[%emt 0:00:17]} 21. f4 {[%emt 0:00:37]} Nf3+ {[%emt 0:00:33]} 22. Kf2 {[%emt 0:00:15]} Nh4 {[%emt 0:00:13]} 23. Qd3 {[%emt 0:00:27]} Nxg4+ {[%emt 0:00:36]} 24. Ke1 {[%emt 0:00:24]} Ng2+ {[%emt 0:00:28]} 25. Kd1 {[%emt 0:00:04]} N4e3+ {[%emt 0:00:15]} 26. Bxe3 {[%emt 0:00:19]} Nxe3+ {[%emt 0:00:03]} 0-1

[Event "POL-chT 2 Liga 2019"]
[Site "Poronin"]
[Date "2019.09.13"]
[Round "7.4"]
[White "Szpar, Milosz"]
[Black "Jankowiak, Piotr"]
[Result "1-0"]
[ECO "A06"]
[WhiteElo "2309"]
[BlackElo "1999"]
[Annotator "NA"]
[PlyCount "57"]
[EventDate "2019.09.07"]
[EventType "team-tourn"]
[EventCountry "POL"]
[SourceTitle "playchess.com"]
[Source "ChessBase"]
[SourceQuality "1"]
[TimeControl "40/5400+30:1800+30"]

1. Nf3 {[%emt 0:00:00]} d5 {[%emt 0:00:00]} 2. g3 {[%emt 0:00:00]} Nf6 {[%emt 0:00:00]} 3. Bg2 {[%emt 0:00:00]} g6 {[%emt 0:01:52]} 4. O-O {[%emt 0:00:11]} Bg7 {[%emt 0:00:25]} 5. c4 {[%emt 0:01:10]} c6 {[%emt 0:05:11]} 6. d3 {[%emt 0:04:53]} O-O {[%emt 0:02:24]} 7. Nc3 {[%emt 0:01:04]} dxc4 {[%emt 0:10:10]} 8. dxc4 {[%emt 0:04:52]} Qxd1 {[%emt 0:00:27]} 9. Nxd1 {[%emt 0:02:53]} a5 {[%emt 0:04:35]} 10. Be3 {[%emt 0:03:46]} Be6 {[%emt 0:10:06]} 11. Rc1 {[%emt 0:01:59]} a4 {[%emt 0:18:59]} 12. b3 {[%emt 0:11:23]} axb3 {[%emt 0:02:33]} 13. axb3 {[%emt 0:02:03]} Na6 {[%emt 0:05:11]} 14. Nc3 {[%emt 0:00:32]} Ng4 {[%emt 0:02:50]} 15. Bb6 {[%emt 0:02:38]} Ne5 {[%emt 0:06:35]} 16. Ng5 {[%emt 0:06:53]} Bc8 {[%emt 0:01:34]} 17. Na4 {[%emt 0:00:32]} h6 {[%emt 0:02:11]} 18. Ne4 {[%emt 0:01:46]} Nd7 {[%emt 0:03:29]} 19. Be3 {[%emt 0:01:08]} f5 {[%emt 0:00:59]} 20. Nec3 {[%emt 0:01:23]} Nb4 {[%emt 0:04:32]} 21. Rfd1 {[%emt 0:01:56]} Ra5 {[%emt 0:01:40]} 22. Bd2 {[%emt 0:03:46]} Ra8 {[%emt 0:02:55]} 23. Nd5 {[%emt 0:02:41]} cxd5 {[%emt 0:05:38]} 24. Bxb4 {[%emt 0:00:07]} dxc4 {[%emt 0:00:23]} 25. Rxc4 {[%emt 0:01:10]} Rb8 {[%emt 0:02:43]} 26. Rc7 {[%emt 0:22:38]} b5 {[%emt 0:00:34]} 27. Nc3 {[%emt 0:01:02]} Nf6 {[%emt 0:02:44]} 28. Rxe7 {[%emt 0:04:24]} Rb6 {[%emt 0:02:42]} 29. Rxg7+ 1-0

[Event "POL-chT 2 Liga 2019"]
[Site "Poronin"]
[Date "2019.09.13"]
[Round "7.5"]
[White "Dryja, Szymon"]
[Black "Mika, Tomasz"]
[Result "1/2-1/2"]
[ECO "D11"]
[WhiteElo "1854"]
[BlackElo "2136"]
[Annotator "NA"]
[PlyCount "53"]
[EventDate "2019.09.07"]
[EventType "team-tourn"]
[EventCountry "POL"]
[SourceTitle "playchess.com"]
[Source "ChessBase"]
[SourceQuality "1"]
[TimeControl "40/5400+30:1800+30"]

1. d4 {[%emt 0:00:00]} d5 {[%emt 0:00:00]} 2. c4 {[%emt 0:00:00]} c6 {[%emt 0:00:00]} 3. Nf3 {[%emt 0:00:00]} Nf6 {[%emt 0:00:01]} 4. e3 {[%emt 0:00:01]} e6 {[%emt 0:00:54]} 5. b3 {[%emt 0:00:08]} Bd6 {[%emt 0:00:48]} 6. Bd3 {[%emt 0:01:21]} Nbd7 {[%emt 0:00:39]} 7. Bb2 {[%emt 0:00:44]} b6 {[%emt 0:01:46]} 8. O-O {[%emt 0:02:20]} O-O {[%emt 0:00:52]} 9. Nbd2 {[%emt 0:01:40]} Bb7 {[%emt 0:06:11]} 10. Rc1 {[%emt 0:01:47]} Qe7 {[%emt 0:02:36]} 11. Re1 {[%emt 0:04:49]} Rfd8 {[%emt 0:04:01]} 12. Qc2 {[%emt 0:01:07]} Rac8 {[%emt 0:03:30]} 13. Qb1 {[%emt 0:00:19]} Ba3 {[%emt 0:02:49]} 14. Bxa3 {[%emt 0:05:47]} Qxa3 {[%emt 0:00:45]} 15. b4 {[%emt 0:06:10]} Rc7 {[%emt 0:13:55]} 16. e4 {[%emt 0:02:51]} dxe4 {[%emt 0:02:06]} 17. Nxe4 {[%emt 0:01:12]} a5 {[%emt 0:01:29]} 18. Neg5 {[%emt 0:08:50]} Nf8 {[%emt 0:06:59]} 19. bxa5 {[%emt 0:08:51]} Qxa5 {[%emt 0:00:50]} 20. c5 {[%emt 0:02:46]} bxc5 {[%emt 0:06:43]} 21. dxc5 {[%emt 0:00:12]} Ra8 {[%emt 0:07:11]} 22. Ne5 {[%emt 0:04:55]} Ba6 {[%emt 0:03:27]} 23. Bxa6 {[%emt 0:05:55]} Qxa6 {[%emt 0:00:49]} 24. Qb6 {[%emt 0:03:06]} Qc8 {[%emt 0:00:14]} 25. Qb3 {[%emt 0:05:03]} Qa6 {[%emt 0:05:41]} 26. Qb6 {[%emt 0:01:28]} Qc8 {[%emt 0:00:06]} 27. Qb3 1/2-1/2

[Event "POL-chT 2 Liga 2019"]
[Site "Poronin"]
[Date "2019.09.13"]
[Round "7.6"]
[White "Swiech, Joanna"]
[Black "Czarniecka, Aleksandra"]
[Result "1/2-1/2"]
[ECO "A41"]
[WhiteElo "2055"]
[BlackElo "2003"]
[Annotator "NA"]
[PlyCount "65"]
[EventDate "2019.09.07"]
[EventType "team-tourn"]
[EventCountry "POL"]
[SourceTitle "playchess.com"]
[Source "ChessBase"]
[SourceQuality "1"]
[TimeControl "40/5400+30:1800+30"]

1. d4 {[%emt 0:00:00]} d6 {[%emt 0:00:00]} 2. c4 {[%emt 0:00:00]} e5 {[%emt 0:00:05]} 3. d5 {[%emt 0:01:34]} f5 {[%emt 0:00:16]} 4. Nc3 {[%emt 0:00:26]} Nf6 {[%emt 0:00:22]} 5. e3 {[%emt 0:01:03]} g6 {[%emt 0:02:34]} 6. Bd3 {[%emt 0:04:55]} Bg7 {[%emt 0:09:47]} 7. Nge2 {[%emt 0:03:08]} O-O {[%emt 0:01:03]} 8. f4 {[%emt 0:07:12]} e4 {[%emt 0:08:25]} 9. Bc2 {[%emt 0:00:33]} c6 {[%emt 0:02:56]} 10. dxc6 {[%emt 0:10:25]} bxc6 {[%emt 0:05:05]} 11. O-O {[%emt 0:01:35]} Be6 {[%emt 0:03:12]} 12. b3 {[%emt 0:02:22]} Qc7 {[%emt 0:08:51]} 13. Qd2 {[%emt 0:07:28]} Na6 {[%emt 0:05:53]} 14. Nd4 {[%emt 0:05:58]} Bf7 {[%emt 0:01:26]} 15. Bb2 {[%emt 0:01:27]} Rab8 {[%emt 0:02:48]} 16. Bd1 {[%emt 0:03:16]} Nc5 {[%emt 0:02:36]} 17. Be2 {[%emt 0:00:50]} a5 {[%emt 0:02:40]} 18. Ba3 {[%emt 0:03:33]} Rfd8 {[%emt 0:03:26]} 19. Rac1 {[%emt 0:08:49]} Ne6 {[%emt 0:08:18]} 20. Nxe6 {[%emt 0:00:37]} Bxe6 {[%emt 0:00:08]} 21. Rfd1 {[%emt 0:00:52]} Ne8 {[%emt 0:05:35]} 22. Bf1 {[%emt 0:03:25]} Qb6 {[%emt 0:01:49]} 23. Ne2 {[%emt 0:06:27]} c5 {[%emt 0:00:47]} 24. Nc3 {[%emt 0:00:54]} Nc7 {[%emt 0:01:17]} 25. Bb2 {[%emt 0:04:40]} Rd7 {[%emt 0:02:26]} 26. Na4 {[%emt 0:01:06]} Qb4 {[%emt 0:01:49]} 27. Bxg7 {[%emt 0:01:07]} Kxg7 {[%emt 0:01:03]} 28. Rc2 {[%emt 0:02:35]} Kf7 {[%emt 0:03:01]} 29. Qf2 {[%emt 0:00:40]} Ne8 {[%emt 0:01:07]} 30. Rcd2 {[%emt 0:00:49]} Rbd8 {[%emt 0:00:49]} 31. Rc2 {[%emt 0:01:25]} Rb8 {[%emt 0:03:43]} 32. Rcd2 {[%emt 0:01:28]} Rbd8 {[%emt 0:00:05]} 33. Rc2 {[%emt 0:00:07]} 1/2-1/2